Workbook

Sheet Subnetting
B1: SUBNETTING CALCULATOR v.1.3 © Marek Telecki, 2010
L2: HEX
B4: Host IP Address | D4: 10 | E4: . | F4: 168 | G4: . | H4: 114 | I4: . | J4: 250 | L4: =DEC2HEX(D4) -> A | M4: . | N4: =DEC2HEX(F4) -> A8 | O4: . | P4: =DEC2HEX(H4) -> 72 | Q4: . | R4: =DEC2HEX(J4) -> FA
B5: Binary | D5: =DEC2BIN(D4)+0 -> 1010 | F5: =DEC2BIN(F4)+0 -> 10101000 | H5: =DEC2BIN(H4)+0 -> 1110010 | J5: =DEC2BIN(J4)+0 -> 11111010
B6: Host IP Address Type | D6: =IF(OR(AND(D4=192,F4=168),AND(D4=172,F4>15,F4<32),D4=10),"private",IF(D4=0,"default",IF(D4=127,"loopback",IF(AND(D4=169,F4=254),"link-local",IF(AND(D4=192,F4=0,H4=2),"test",IF(AND(D4>223,D4<240),"group",IF(AND(D4>239,J4<255),"experimental","public"))))))) -> private
B7: Host IP Address Class | D7: =IF(D4<128,"A",IF(D4<192,"B",IF(D4<224,"C","other"))) -> A
B9: Subnet Mask | D9: 255 | E9: . | F9: 255 | G9: . | H9: 255 | I9: . | J9: 128 | L9: =DEC2HEX(D9) -> FF | M9: . | N9: =DEC2HEX(F9) -> FF | O9: . | P9: =DEC2HEX(H9) -> FF | Q9: . | R9: =DEC2HEX(J9) -> 80
B10: Binary | D10: =DEC2BIN(D9)+0 -> 11111111 | F10: =DEC2BIN(F9)+0 -> 11111111 | H10: =DEC2BIN(H9)+0 -> 11111111 | J10: =DEC2BIN(J9)+0 -> 10000000
B11: Prefix | D11: =IF(D7="C",VLOOKUP(J9,B42:C50,2)+24,IF(D7="B",VLOOKUP(H9,B42:C50,2)+VLOOKUP(J9,B42:C50,2)+16,IF(D7="A",VLOOKUP(F9,B42:C50,2)+VLOOKUP(H9,B42:C50,2)+VLOOKUP(J9,B42:C50,2)+8,"-"))) -> 25
B12: Subnet Mask Validation | D12: =IF(AND(F9=LOOKUP(F9,B42:B50),H9=LOOKUP(H9,B42:B50),J9=LOOKUP(J9,B42:B50),OR(AND(F9<255,H9=0,J9=0),AND(F9=255,H9<F9,J9=0),AND(F9=255,H9=255,OR(J9=0,J9>0),J9<255))),"Correct mask","Wrong mask") -> Correct mask
B14: Major (default) Network Mask | D14: 255 | E14: . | F14: =IF(OR(D7="B",D7="C"),255,0) -> 0 | G14: . | H14: =IF(D7="C",255,0) -> 0 | I14: . | J14: 0 | L14: FF | M14: . | N14: 0 | O14: . | P14: 0 | Q14: . | R14: 0
B15: Binary | D15: =DEC2BIN(D14)+0 -> 11111111 | F15: =DEC2BIN(F14)+0 -> 0 | H15: =DEC2BIN(H14)+0 -> 0 | J15: =DEC2BIN(J14)+0 -> 0
B18: Number of Subnet Bits | D18: =IF(D7="A",VLOOKUP(F9,B42:C50,2)+VLOOKUP(H9,B42:C50,2)+VLOOKUP(J9,B42:C50,2),IF(D7="B",VLOOKUP(H9,B42:C50,2)+VLOOKUP(J9,B42:C50,2),IF(D7="C",VLOOKUP(J9,B42:C50,2),"other"))) -> 17
B19: Number of Subnets | D19: =2^D18 -> 131072
B20: Number of Host Bits per Subnet | D20: =IF(D7="A",24-D18,IF(D7="B",16-D18,IF(D7="C",8-D18,"other"))) -> 7
B21: Number of Usable Host per Subnet | D21: =2^D20-2 -> 126
B23: Subnet Address for this IP Address | D23: =BIN2DEC(D24) -> 10 | E23: . | F23: =BIN2DEC(F24) -> 168 | G23: . | H23: =BIN2DEC(H24) -> 114 | I23: . | J23: =BIN2DEC(J24) -> 128 | L23: A | M23: . | N23: A8 | O23: . | P23: 72 | Q23: . | R23: 80
B24: Binary | D24: =DEC2BIN(SUMPRODUCT(MOD(INT(D4/bits),2)*MOD(INT(D9/bits),2),bits))+0 -> 1010 | F24: =DEC2BIN(SUMPRODUCT(MOD(INT(F4/bits),2)*MOD(INT(F9/bits),2),bits))+0 -> 10101000 | H24: =DEC2BIN(SUMPRODUCT(MOD(INT(H4/bits),2)*MOD(INT(H9/bits),2),bits))+0 -> 1110010 | J24: =DEC2BIN(SUMPRODUCT(MOD(INT(J4/bits),2)*MOD(INT(J9/bits),2),bits))+0 -> 10000000
B26: IP Address of First Host on this Subnet | D26: =D4 -> 10 | E26: . | F26: =BIN2DEC(F27) -> 168 | G26: . | H26: =BIN2DEC(H27) -> 114 | I26: . | J26: =BIN2DEC(J27) -> 129 | L26: A | M26: . | N26: A8 | O26: . | P26: 72 | Q26: . | R26: 81
B27: Binary | D27: =D5+0 -> 1010 | F27: =F24+0 -> 10101000 | H27: =H24+0 -> 1110010 | J27: =J24+1 -> 10000001
B29: IP Address of Last Host on this Subnet | D29: =D4 -> 10 | E29: . | F29: =BIN2DEC(F30) -> 168 | G29: . | H29: =BIN2DEC(H30) -> 114 | I29: . | J29: =J32-1 -> 254 | L29: A | M29: . | N29: A8 | O29: . | P29: 72 | Q29: . | R29: FE
B30: Binary | D30: =D5+0 -> 1010 | F30: =F33 -> 10101000 | H30: =H33 -> 1110010 | J30: =DEC2BIN(J29)+0 -> 11111110
B32: Broadcast Address for this Subnet | D32: =BIN2DEC(D33) -> 10 | E32: . | F32: =IF(D20>16,F23+(2^(D20-16))-1,F23) -> 168 | G32: . | H32: =IF(AND(D20>8,D20<16),H23+(2^(D20-8))-1,IF(D20>16,255,H23)) -> 114 | I32: . | J32: =IF(D20<8,J23+(2^D20)-1,255) -> 255 | L32: A | M32: . | N32: A8 | O32: . | P32: 72 | Q32: . | R32: FF
B33: Binary | D33: =D24 -> 1010 | F33: =DEC2BIN(F32)+0 -> 10101000 | H33: =DEC2BIN(H32)+0 -> 1110010 | J33: =DEC2BIN(J32)+0 -> 11111111
B41: Wartość maski | C41: Ilość bitow
B42: 0 | C42: 0
B43: 128 | C43: 1
B44: 192 | C44: 2
B45: 224 | C45: 3
B46: 240 | C46: 4
B47: 248 | C47: 5
B48: 252 | C48: 6
B49: 254 | C49: 7
B50: 255 | C50: 8

Sheet VLSM Calculator
B1: VARIABLE LENGTH SUBNET MASK CALCULATOR v.1.3 © Marek Telecki, 2010 | AV1: Subnet | AW1: No. Of Hosts | AX1: +10% | AY1: No. Of Host's Bits | BA1: BIT | BE1: DEC | BG1: BIN | BJ1: Ilość bitow | BK1: Wartość maski
AV3: 1 | AW3: =D14 -> 100 | AX3: =ROUNDUP(AW3+(AW3*0.1),0) -> 110 | AY3: =ROUNDUP(LOG(AW3+2,2),0) -> 7 | BA3: 0 | BC3: 20 | BD3: = | BE3: =2^BA3 -> 1 | BG3: =DEC2BIN($BA$3)+0 -> 0 | BH3: =DEC2BIN(BE3,8) -> 00000001 | BJ3: 0 | BK3: 0
B4: Major Network IP Address | F4: 222 | G4: . | H4: 37 | I4: . | J4: 34 | K4: . | L4: 0 | T4: user input | AV4: 2 | AW4: =D16 -> 60 | AX4: 66 | AY4: =ROUNDUP(LOG(AW4+2,2),0) -> 6 | BA4: 1 | BC4: 21 | BD4: = | BE4: 2 | BG4: 0 | BH4: 00000010 | BJ4: 1 | BK4: 128
B5: Host IP Address Type | F5: =IF(OR(AND(F4=192,H4=168),AND(F4=172,H4>15,H4<32),F4=10),"private",IF(F4=0,"default",IF(F4=127,"loopback",IF(AND(F4=169,H4=254),"link-local",IF(AND(F4=192,H4=0,J4=2),"test",IF(AND(F4>223,F4<240),"group",IF(AND(F4>239,L4<255),"experimental","public"))))))) -> public | AV5: 3 | AW5: =D18 -> 29 | AX5: 32 | AY5: 5 | BA5: 2 | BC5: 22 | BD5: = | BE5: 4 | BG5: 0 | BH5: 00000100 | BJ5: 2 | BK5: 192
B6: Host IP Address Class | F6: =IF(F4<128,"A",IF(F4<192,"B",IF(F4<224,"C","other"))) -> C | AV6: 4 | AW6: =D20 -> 12 | AX6: 14 | AY6: 4 | BA6: 3 | BC6: 23 | BD6: = | BE6: 8 | BG6: 0 | BH6: 00001000 | BJ6: 3 | BK6: 224
B7: Major (default) Network Mask | F7: 255 | G7: . | H7: =IF(OR(F6="B",F6="C"),255,0) -> 255 | I7: . | J7: =IF(F6="C",255,0) -> 255 | K7: . | L7: 0 | AV7: 5 | AW7: =D22 -> 3 | AX7: 4 | AY7: 3 | BA7: 4 | BC7: 24 | BD7: = | BE7: 16 | BG7: 0 | BH7: 00010000 | BJ7: 4 | BK7: 240
AV8: 6 | AW8: =D24 -> 0 | AX8: 0 | AY8: 1 | BA8: 5 | BC8: 25 | BD8: = | BE8: 32 | BG8: 0 | BH8: 00100000 | BJ8: 5 | BK8: 248
B9: No. of Subnets | F9: =COUNTIF(AW3:AW18,">0") -> 5 | AV9: 7 | AW9: =D26 -> 0 | AX9: 0 | AY9: 1 | BA9: 6 | BC9: 26 | BD9: = | BE9: 64 | BG9: 0 | BH9: 01000000 | BJ9: 6 | BK9: 252
AV10: 8 | AW10: =D28 -> 0 | AX10: 0 | AY10: 1 | BA10: 7 | BC10: 27 | BD10: = | BE10: 128 | BG10: 0 | BH10: 10000000 | BJ10: 7 | BK10: 254
AV11: 9 | AW11: =D30 -> 0 | AX11: 0 | AY11: 1 | BA11: 8 | BC11: 28 | BD11: = | BE11: 256 | BG11: =DEC2BIN(BE3,8) -> 00000001 | BH11: =DEC2BIN($BA$3)+0 -> 0 | BJ11: 8 | BK11: 255
D12: Number of Hosts | F12: Subnet Address for this IP Address | N12: IP Address of First Host on this Subnet | V12: IP Address of Last Host on this Subnet | AD12: Broadcast Address for this Subnet | AL12: Subnet Mask | AT12: Prefix | AV12: 10 | AW12: =D32 -> 0 | AX12: 0 | AY12: 1 | BA12: 9 | BC12: 29 | BD12: = | BE12: 512 | BG12: =DEC2BIN(BE4,8) -> 00000010 | BH12: 0
AV13: 11 | AW13: =D34 -> 0 | AX13: 0 | AY13: 1 | BA13: 10 | BC13: 210 | BD13: = | BE13: 1024 | BG13: 00000100 | BH13: 0
B14: Subnet #1 | D14: 100 | F14: =F4 -> 222 | G14: . | H14: =H4 -> 37 | I14: . | J14: =J4 -> 34 | K14: . | L14: =L4 -> 0 | N14: =F14 -> 222 | O14: . | P14: =H14 -> 37 | Q14: . | R14: =J14 -> 34 | S14: . | T14: =L14+1 -> 1 | V14: =AD14 -> 222 | W14: . | X14: =AF14 -> 37 | Y14: . | Z14: =AH14 -> 34 | AA14: . | AB14: =AJ14-1 -> 126 | AD14: =F14 -> 222 | AE14: . | AF14: =IF(AY3>16,H14+(2^(AY3-16))-1,H14) -> 37 | AG14: . | AH14: =IF(AND(AY3>8,AY3<16),J14+(2^(AY3-8))-1,IF(AY3>16,255,J14)) -> 34 | AI14: . | AJ14: =IF(AY3<8,L14+(2^AY3)-1,255) -> 127 | AL14: =F7 -> 255 | AM14: . | AN14: =H7 -> 255 | AO14: . | AP14: =IF(OR(16-AY3<0,16-AY3=0),0,VLOOKUP(16-AY3,BJ3:BK11,2)) -> 255 | AQ14: . | AR14: =IF(OR(8-AY3<0,8-AY3=0),0,VLOOKUP(8-AY3,BJ3:BK11,2)) -> 128 | AT14: =32-AY3 -> 25 | AV14: 12 | AW14: =D36 -> 0 | AX14: 0 | AY14: 1 | BA14: 11 | BC14: 211 | BD14: = | BE14: 2048 | BG14: 00001000 | BH14: 0
AV15: 13 | AW15: =D38 -> 0 | AX15: 0 | AY15: 1 | BA15: 12 | BC15: 212 | BD15: = | BE15: 4096 | BG15: 00010000 | BH15: 0
B16: Subnet #2 | D16: 60 | F16: =AD14 -> 222 | G16: . | H16: =AF14 -> 37 | I16: . | J16: =IF(L16>0,AH14,AH14+1) -> 34 | K16: . | L16: =IF(AJ14<250,AJ14+1,0) -> 128 | N16: =F16 -> 222 | O16: . | P16: =H16 -> 37 | Q16: . | R16: =J16 -> 34 | S16: . | T16: =L16+1 -> 129 | V16: =AD16 -> 222 | W16: . | X16: =AF16 -> 37 | Y16: . | Z16: =AH16 -> 34 | AA16: . | AB16: =AJ16-1 -> 190 | AD16: =F16 -> 222 | AE16: . | AF16: =IF(AY4>16,H16+(2^(AY4-16))-1,H16) -> 37 | AG16: . | AH16: =IF(AND(AY4>8,AY4<16),J16+(2^(AY4-8))-1,IF(AY4>16,255,J16)) -> 34 | AI16: . | AJ16: =IF(AY4<8,L16+(2^AY4)-1,255) -> 191 | AL16: =AL14 -> 255 | AM16: . | AN16: =AN14 -> 255 | AO16: . | AP16: =IF(OR(16-AY4<0,16-AY4=0),0,VLOOKUP(16-AY4,BJ3:BK11,2)) -> 255 | AQ16: . | AR16: =IF(OR(8-AY4<0,8-AY4=0),0,VLOOKUP(8-AY4,BJ3:BK11,2)) -> 192 | AT16: =32-AY4 -> 26 | AV16: 14 | AW16: =D40 -> 0 | AX16: 0 | AY16: 1 | BA16: 13 | BC16: 213 | BD16: = | BE16: 8192 | BG16: 00100000 | BH16: 0
AV17: 15 | AW17: =D42 -> 0 | AX17: 0 | AY17: 1 | BA17: 14 | BC17: 214 | BD17: = | BE17: 16384 | BG17: 01000000 | BH17: 0
B18: Subnet #3 | D18: 29 | F18: =AD16 -> 222 | G18: . | H18: =AF16 -> 37 | I18: . | J18: =IF(L18>0,AH16,AH16+1) -> 34 | K18: . | L18: =IF(AJ16<250,AJ16+1,0) -> 192 | N18: =F18 -> 222 | O18: . | P18: =H18 -> 37 | Q18: . | R18: =J18 -> 34 | S18: . | T18: =L18+1 -> 193 | V18: =AD18 -> 222 | W18: . | X18: =AF18 -> 37 | Y18: . | Z18: =AH18 -> 34 | AA18: . | AB18: =AJ18-1 -> 222 | AD18: =F18 -> 222 | AE18: . | AF18: =IF(AY6>16,H18+(2^(AY6-16))-1,H18) -> 37 | AG18: . | AH18: =IF(AND(AY6>8,AY6<16),J18+(2^(AY6-8))-1,IF(AY6>16,255,J18)) -> 34 | AI18: . | AJ18: =IF(AY5<8,L18+(2^AY5)-1,255) -> 223 | AL18: =AL16 -> 255 | AM18: . | AN18: =AN16 -> 255 | AO18: . | AP18: =IF(OR(16-AY5<0,16-AY5=0),0,VLOOKUP(16-AY5,BJ3:BK11,2)) -> 255 | AQ18: . | AR18: =IF(OR(8-AY5<0,8-AY5=0),0,VLOOKUP(8-AY5,BJ3:BK11,2)) -> 224 | AT18: =32-AY5 -> 27 | AV18: 16 | AW18: =D44 -> 0 | AX18: 0 | AY18: 1 | BA18: 15 | BC18: 215 | BD18: = | BE18: 32768 | BG18: 10000000 | BH18: 0
B20: Subnet #4 | D20: 12 | F20: =AD18 -> 222 | G20: . | H20: =AF18 -> 37 | I20: . | J20: =IF(L20>0,AH18,AH18+1) -> 34 | K20: . | L20: =IF(AJ18<250,AJ18+1,0) -> 224 | N20: =F20 -> 222 | O20: . | P20: =H20 -> 37 | Q20: . | R20: =J20 -> 34 | S20: . | T20: =L20+1 -> 225 | V20: =AD20 -> 222 | W20: . | X20: =AF20 -> 37 | Y20: . | Z20: =AH20 -> 34 | AA20: . | AB20: =AJ20-1 -> 238 | AD20: =F20 -> 222 | AE20: . | AF20: =IF(AY6>16,H20+(2^(AY6-16))-1,H20) -> 37 | AG20: . | AH20: =IF(AND(AY6>8,AY6<16),J20+(2^(AY6-8))-1,IF(AY6>16,255,J20)) -> 34 | AI20: . | AJ20: =IF(AY6<8,L20+(2^AY6)-1,255) -> 239 | AL20: =AL18 -> 255 | AM20: . | AN20: =AN18 -> 255 | AO20: . | AP20: =IF(OR(16-AY6<0,16-AY6=0),0,VLOOKUP(16-AY6,BJ3:BK11,2)) -> 255 | AQ20: . | AR20: =IF(OR(8-AY6<0,8-AY6=0),0,VLOOKUP(8-AY6,BJ3:BK11,2)) -> 240 | AT20: =32-AY6 -> 28
B22: Subnet #5 | D22: 3 | F22: =AD20 -> 222 | G22: . | H22: =AF20 -> 37 | I22: . | J22: =IF(L22>0,AH20,AH20+1) -> 34 | K22: . | L22: =IF(AJ20<250,AJ20+1,0) -> 240 | N22: =F22 -> 222 | O22: . | P22: =H22 -> 37 | Q22: . | R22: =J22 -> 34 | S22: . | T22: =L22+1 -> 241 | V22: =AD22 -> 222 | W22: . | X22: =AF22 -> 37 | Y22: . | Z22: =AH22 -> 34 | AA22: . | AB22: =AJ22-1 -> 246 | AD22: =F22 -> 222 | AE22: . | AF22: =IF(AY7>16,H22+(2^(AY7-16))-1,H22) -> 37 | AG22: . | AH22: =IF(AND(AY7>8,AY7<16),J22+(2^(AY7-8))-1,IF(AY7>16,255,J22)) -> 34 | AI22: . | AJ22: =IF(AY7<8,L22+(2^AY7)-1,255) -> 247 | AL22: =AL20 -> 255 | AM22: . | AN22: =AN20 -> 255 | AO22: . | AP22: =IF(OR(16-AY7<0,16-AY7=0),0,VLOOKUP(16-AY7,BJ3:BK11,2)) -> 255 | AQ22: . | AR22: =IF(OR(8-AY7<0,8-AY7=0),0,VLOOKUP(8-AY7,BJ3:BK11,2)) -> 248 | AT22: =32-AY7 -> 29
B24: Subnet #6 | D24: 0 | F24: =AD22 -> 222 | G24: . | H24: =AF22 -> 37 | I24: . | J24: =IF(L24>0,AH22,AH22+1) -> 34 | K24: . | L24: =IF(AJ22<250,AJ22+1,0) -> 248 | N24: =F24 -> 222 | O24: . | P24: =H24 -> 37 | Q24: . | R24: =J24 -> 34 | S24: . | T24: =L24+1 -> 249 | V24: =AD24 -> 222 | W24: . | X24: =AF24 -> 37 | Y24: . | Z24: =AH24 -> 34 | AA24: . | AB24: =AJ24-1 -> 248 | AD24: =F24 -> 222 | AE24: . | AF24: =IF(AY8>16,H24+(2^(AY8-16))-1,H24) -> 37 | AG24: . | AH24: =IF(AND(AY8>8,AY8<16),J24+(2^(AY8-8))-1,IF(AY8>16,255,J24)) -> 34 | AI24: . | AJ24: =IF(AY8<8,L24+(2^AY8)-1,255) -> 249 | AL24: =AL22 -> 255 | AM24: . | AN24: =AN22 -> 255 | AO24: . | AP24: =IF(OR(16-AY8<0,16-AY8=0),0,VLOOKUP(16-AY8,BJ3:BK11,2)) -> 255 | AQ24: . | AR24: =IF(OR(8-AY8<0,8-AY8=0),0,VLOOKUP(8-AY8,BJ3:BK11,2)) -> 254 | AT24: =32-AY8 -> 31
B26: Subnet #7 | D26: 0 | F26: =AD24 -> 222 | G26: . | H26: =AF24 -> 37 | I26: . | J26: =IF(L26>0,AH24,AH24+1) -> 34 | K26: . | L26: =IF(AJ24<250,AJ24+1,0) -> 250 | N26: =F26 -> 222 | O26: . | P26: =H26 -> 37 | Q26: . | R26: =J26 -> 34 | S26: . | T26: =L26+1 -> 251 | V26: =AD26 -> 222 | W26: . | X26: =AF26 -> 37 | Y26: . | Z26: =AH26 -> 34 | AA26: . | AB26: =AJ26-1 -> 250 | AD26: =F26 -> 222 | AE26: . | AF26: =IF(AY9>16,H26+(2^(AY9-16))-1,H26) -> 37 | AG26: . | AH26: =IF(AND(AY9>8,AY9<16),J26+(2^(AY9-8))-1,IF(AY9>16,255,J26)) -> 34 | AI26: . | AJ26: =IF(AY9<8,L26+(2^AY9)-1,255) -> 251 | AL26: =AL24 -> 255 | AM26: . | AN26: =AN24 -> 255 | AO26: . | AP26: =IF(OR(16-AY9<0,16-AY9=0),0,VLOOKUP(16-AY9,BJ3:BK11,2)) -> 255 | AQ26: . | AR26: =IF(OR(8-AY9<0,8-AY9=0),0,VLOOKUP(8-AY9,BJ3:BK11,2)) -> 254 | AT26: =32-AY9 -> 31
B28: Subnet #8 | D28: 0 | F28: =AD26 -> 222 | G28: . | H28: =AF26 -> 37 | I28: . | J28: =IF(L28>0,AH26,AH26+1) -> 35 | K28: . | L28: =IF(AJ26<250,AJ26+1,0) -> 0 | N28: =F28 -> 222 | O28: . | P28: =H28 -> 37 | Q28: . | R28: =J28 -> 35 | S28: . | T28: =L28+1 -> 1 | V28: =AD28 -> 222 | W28: . | X28: =AF28 -> 37 | Y28: . | Z28: =AH28 -> 35 | AA28: . | AB28: =AJ28-1 -> 0 | AD28: =F28 -> 222 | AE28: . | AF28: =IF(AY10>16,H28+(2^(AY10-16))-1,H28) -> 37 | AG28: . | AH28: =IF(AND(AY10>8,AY10<16),J28+(2^(AY10-8))-1,IF(AY10>16,255,J28)) -> 35 | AI28: . | AJ28: =IF(AY10<8,L28+(2^AY10)-1,255) -> 1 | AL28: =AL26 -> 255 | AM28: . | AN28: =AN26 -> 255 | AO28: . | AP28: =IF(OR(16-AY10<0,16-AY10=0),0,VLOOKUP(16-AY10,BJ3:BK11,2)) -> 255 | AQ28: . | AR28: =IF(OR(8-AY10<0,8-AY10=0),0,VLOOKUP(8-AY10,BJ3:BK11,2)) -> 254 | AT28: =32-AY10 -> 31
B30: Subnet #9 | D30: 0 | F30: =AD28 -> 222 | G30: . | H30: =AF28 -> 37 | I30: . | J30: =IF(L30>0,AH28,AH28+1) -> 35 | K30: . | L30: =IF(AJ28<250,AJ28+1,0) -> 2 | N30: =F30 -> 222 | O30: . | P30: =H30 -> 37 | Q30: . | R30: =J30 -> 35 | S30: . | T30: =L30+1 -> 3 | V30: =AD30 -> 222 | W30: . | X30: =AF30 -> 37 | Y30: . | Z30: =AH30 -> 35 | AA30: . | AB30: =AJ30-1 -> 2 | AD30: =F30 -> 222 | AE30: . | AF30: =IF(AY11>16,H30+(2^(AY11-16))-1,H30) -> 37 | AG30: . | AH30: =IF(AND(AY11>8,AY11<16),J30+(2^(AY11-8))-1,IF(AY11>16,255,J30)) -> 35 | AI30: . | AJ30: =IF(AY11<8,L30+(2^AY11)-1,255) -> 3 | AL30: =AL28 -> 255 | AM30: . | AN30: =AN28 -> 255 | AO30: . | AP30: =IF(OR(16-AY11<0,16-AY11=0),0,VLOOKUP(16-AY11,BJ3:BK11,2)) -> 255 | AQ30: . | AR30: =IF(OR(8-AY11<0,8-AY11=0),0,VLOOKUP(8-AY11,BJ3:BK11,2)) -> 254 | AT30: =32-AY11 -> 31
B32: Subnet #10 | D32: 0 | F32: =AD30 -> 222 | G32: . | H32: =AF30 -> 37 | I32: . | J32: =IF(L32>0,AH30,AH30+1) -> 35 | K32: . | L32: =IF(AJ30<250,AJ30+1,0) -> 4 | N32: =F32 -> 222 | O32: . | P32: =H32 -> 37 | Q32: . | R32: =J32 -> 35 | S32: . | T32: =L32+1 -> 5 | V32: =AD32 -> 222 | W32: . | X32: =AF32 -> 37 | Y32: . | Z32: =AH32 -> 35 | AA32: . | AB32: =AJ32-1 -> 4 | AD32: =F32 -> 222 | AE32: . | AF32: =IF(AY12>16,H32+(2^(AY12-16))-1,H32) -> 37 | AG32: . | AH32: =IF(AND(AY12>8,AY12<16),J32+(2^(AY12-8))-1,IF(AY12>16,255,J32)) -> 35 | AI32: . | AJ32: =IF(AY12<8,L32+(2^AY12)-1,255) -> 5 | AL32: =AL30 -> 255 | AM32: . | AN32: =AN30 -> 255 | AO32: . | AP32: =IF(OR(16-AY12<0,16-AY12=0),0,VLOOKUP(16-AY12,BJ3:BK11,2)) -> 255 | AQ32: . | AR32: =IF(OR(8-AY12<0,8-AY12=0),0,VLOOKUP(8-AY12,BJ3:BK11,2)) -> 254 | AT32: =32-AY12 -> 31
B34: Subnet #11 | D34: 0 | F34: =AD32 -> 222 | G34: . | H34: =AF32 -> 37 | I34: . | J34: =IF(L34>0,AH32,AH32+1) -> 35 | K34: . | L34: =IF(AJ32<250,AJ32+1,0) -> 6 | N34: =F34 -> 222 | O34: . | P34: =H34 -> 37 | Q34: . | R34: =J34 -> 35 | S34: . | T34: =L34+1 -> 7 | V34: =AD34 -> 222 | W34: . | X34: =AF34 -> 37 | Y34: . | Z34: =AH34 -> 35 | AA34: . | AB34: =AJ34-1 -> 6 | AD34: =F34 -> 222 | AE34: . | AF34: =IF(AY13>16,H34+(2^(AY13-16))-1,H34) -> 37 | AG34: . | AH34: =IF(AND(AY13>8,AY13<16),J34+(2^(AY13-8))-1,IF(AY13>16,255,J34)) -> 35 | AI34: . | AJ34: =IF(AY13<8,L34+(2^AY13)-1,255) -> 7 | AL34: =AL32 -> 255 | AM34: . | AN34: =AN32 -> 255 | AO34: . | AP34: =IF(OR(16-AY13<0,16-AY13=0),0,VLOOKUP(16-AY13,BJ3:BK11,2)) -> 255 | AQ34: . | AR34: =IF(OR(8-AY13<0,8-AY13=0),0,VLOOKUP(8-AY13,BJ3:BK11,2)) -> 254 | AT34: =32-AY13 -> 31
B36: Subnet #12 | D36: 0 | F36: =AD34 -> 222 | G36: . | H36: =AF34 -> 37 | I36: . | J36: =IF(L36>0,AH34,AH34+1) -> 35 | K36: . | L36: =IF(AJ34<250,AJ34+1,0) -> 8 | N36: =F36 -> 222 | O36: . | P36: =H36 -> 37 | Q36: . | R36: =J36 -> 35 | S36: . | T36: =L36+1 -> 9 | V36: =AD36 -> 222 | W36: . | X36: =AF36 -> 37 | Y36: . | Z36: =AH36 -> 35 | AA36: . | AB36: =AJ36-1 -> 8 | AD36: =F36 -> 222 | AE36: . | AF36: =IF(AY14>16,H36+(2^(AY14-16))-1,H36) -> 37 | AG36: . | AH36: =IF(AND(AY14>8,AY14<16),J36+(2^(AY14-8))-1,IF(AY14>16,255,J36)) -> 35 | AI36: . | AJ36: =IF(AY14<8,L36+(2^AY14)-1,255) -> 9 | AL36: =AL34 -> 255 | AM36: . | AN36: =AN34 -> 255 | AO36: . | AP36: =IF(OR(16-AY14<0,16-AY14=0),0,VLOOKUP(16-AY14,BJ3:BK11,2)) -> 255 | AQ36: . | AR36: =IF(OR(8-AY14<0,8-AY14=0),0,VLOOKUP(8-AY14,BJ3:BK11,2)) -> 254 | AT36: =32-AY14 -> 31
B38: Subnet #13 | D38: 0 | F38: =AD36 -> 222 | G38: . | H38: =AF36 -> 37 | I38: . | J38: =IF(L38>0,AH36,AH36+1) -> 35 | K38: . | L38: =IF(AJ36<250,AJ36+1,0) -> 10 | N38: =F38 -> 222 | O38: . | P38: =H38 -> 37 | Q38: . | R38: =J38 -> 35 | S38: . | T38: =L38+1 -> 11 | V38: =AD38 -> 222 | W38: . | X38: =AF38 -> 37 | Y38: . | Z38: =AH38 -> 35 | AA38: . | AB38: =AJ38-1 -> 10 | AD38: =F38 -> 222 | AE38: . | AF38: =IF(AY15>16,H38+(2^(AY15-16))-1,H38) -> 37 | AG38: . | AH38: =IF(AND(AY15>8,AY15<16),J38+(2^(AY15-8))-1,IF(AY15>16,255,J38)) -> 35 | AI38: . | AJ38: =IF(AY15<8,L38+(2^AY15)-1,255) -> 11 | AL38: =AL36 -> 255 | AM38: . | AN38: =AN36 -> 255 | AO38: . | AP38: =IF(OR(16-AY15<0,16-AY15=0),0,VLOOKUP(16-AY15,BJ3:BK11,2)) -> 255 | AQ38: . | AR38: =IF(OR(8-AY15<0,8-AY15=0),0,VLOOKUP(8-AY15,BJ3:BK11,2)) -> 254 | AT38: =32-AY15 -> 31
B40: Subnet #14 | D40: 0 | F40: =AD38 -> 222 | G40: . | H40: =AF38 -> 37 | I40: . | J40: =IF(L40>0,AH38,AH38+1) -> 35 | K40: . | L40: =IF(AJ38<250,AJ38+1,0) -> 12 | N40: =F40 -> 222 | O40: . | P40: =H40 -> 37 | Q40: . | R40: =J40 -> 35 | S40: . | T40: =L40+1 -> 13 | V40: =AD40 -> 222 | W40: . | X40: =AF40 -> 37 | Y40: . | Z40: =AH40 -> 35 | AA40: . | AB40: =AJ40-1 -> 12 | AD40: =F40 -> 222 | AE40: . | AF40: =IF(AY16>16,H40+(2^(AY16-16))-1,H40) -> 37 | AG40: . | AH40: =IF(AND(AY16>8,AY16<16),J40+(2^(AY16-8))-1,IF(AY16>16,255,J40)) -> 35 | AI40: . | AJ40: =IF(AY16<8,L40+(2^AY16)-1,255) -> 13 | AL40: =AL38 -> 255 | AM40: . | AN40: =AN38 -> 255 | AO40: . | AP40: =IF(OR(16-AY16<0,16-AY16=0),0,VLOOKUP(16-AY16,BJ3:BK11,2)) -> 255 | AQ40: . | AR40: =IF(OR(8-AY16<0,8-AY16=0),0,VLOOKUP(8-AY16,BJ3:BK11,2)) -> 254 | AT40: =32-AY16 -> 31
B42: Subnet #15 | D42: 0 | F42: =AD40 -> 222 | G42: . | H42: =AF40 -> 37 | I42: . | J42: =IF(L42>0,AH40,AH40+1) -> 35 | K42: . | L42: =IF(AJ40<250,AJ40+1,0) -> 14 | N42: =F42 -> 222 | O42: . | P42: =H42 -> 37 | Q42: . | R42: =J42 -> 35 | S42: . | T42: =L42+1 -> 15 | V42: =AD42 -> 222 | W42: . | X42: =AF42 -> 37 | Y42: . | Z42: =AH42 -> 35 | AA42: . | AB42: =AJ42-1 -> 14 | AD42: =F42 -> 222 | AE42: . | AF42: =IF(AY17>16,H42+(2^(AY17-16))-1,H42) -> 37 | AG42: . | AH42: =IF(AND(AY17>8,AY17<16),J42+(2^(AY17-8))-1,IF(AY17>16,255,J42)) -> 35 | AI42: . | AJ42: =IF(AY17<8,L42+(2^AY17)-1,255) -> 15 | AL42: =AL40 -> 255 | AM42: . | AN42: =AN40 -> 255 | AO42: . | AP42: =IF(OR(16-AY17<0,16-AY17=0),0,VLOOKUP(16-AY17,BJ3:BK11,2)) -> 255 | AQ42: . | AR42: =IF(OR(8-AY17<0,8-AY17=0),0,VLOOKUP(8-AY17,BJ3:BK11,2)) -> 254 | AT42: =32-AY17 -> 31
B44: Subnet #16 | D44: 0 | F44: =AD42 -> 222 | G44: . | H44: =AF42 -> 37 | I44: . | J44: =IF(L44>0,AH42,AH42+1) -> 35 | K44: . | L44: =IF(AJ42<250,AJ42+1,0) -> 16 | N44: =F44 -> 222 | O44: . | P44: =H44 -> 37 | Q44: . | R44: =J44 -> 35 | S44: . | T44: =L44+1 -> 17 | V44: =AD44 -> 222 | W44: . | X44: =AF44 -> 37 | Y44: . | Z44: =AH44 -> 35 | AA44: . | AB44: =AJ44-1 -> 16 | AD44: =F44 -> 222 | AE44: . | AF44: =IF(AY18>16,H44+(2^(AY18-16))-1,H44) -> 37 | AG44: . | AH44: =IF(AND(AY18>8,AY18<16),J44+(2^(AY18-8))-1,IF(AY18>16,255,J44)) -> 35 | AI44: . | AJ44: =IF(AY18<8,L44+(2^AY18)-1,255) -> 17 | AL44: =AL42 -> 255 | AM44: . | AN44: =AN42 -> 255 | AO44: . | AP44: =IF(OR(16-AY18<0,16-AY18=0),0,VLOOKUP(16-AY18,BJ3:BK11,2)) -> 255 | AQ44: . | AR44: =IF(OR(8-AY18<0,8-AY18=0),0,VLOOKUP(8-AY18,BJ3:BK11,2)) -> 254 | AT44: =32-AY18 -> 31
B46: Total hosts: | D46: =SUM(D14:D44) -> 204

Sheet VLSM Table
B2: Company name: | G2: Date: | H2: =TODAY() -> 2011-01-30
B4: VLSM Addressing - Subnets printout | G4: Prepared by: | O4: ='VLSM Calculator'!F9 -> 5
B6: Subnet | C6: Subnet Address | D6: Subnet Mask (/X) | E6: First Usable Host | F6: Last Usable Host | G6: Broadcast Address | H6: Division name
B7: 1 | C7: =CONCATENATE('VLSM Calculator'!F14,".",'VLSM Calculator'!H14,".",'VLSM Calculator'!J14,".",'VLSM Calculator'!L14) -> 222.37.34.0 | D7: ='VLSM Calculator'!AT14 -> 25 | E7: =CONCATENATE('VLSM Calculator'!N14,".",'VLSM Calculator'!P14,".",'VLSM Calculator'!R14,".",'VLSM Calculator'!T14) -> 222.37.34.1 | F7: =CONCATENATE('VLSM Calculator'!V14,".",'VLSM Calculator'!X14,".",'VLSM Calculator'!Z14,".",'VLSM Calculator'!AB14) -> 222.37.34.126 | G7: =CONCATENATE('VLSM Calculator'!AD14,".",'VLSM Calculator'!AF14,".",'VLSM Calculator'!AH14,".",'VLSM Calculator'!AJ14) -> 222.37.34.127
B8: 2 | C8: =CONCATENATE('VLSM Calculator'!F16,".",'VLSM Calculator'!H16,".",'VLSM Calculator'!J16,".",'VLSM Calculator'!L16) -> 222.37.34.128 | D8: ='VLSM Calculator'!AT16 -> 26 | E8: =CONCATENATE('VLSM Calculator'!N16,".",'VLSM Calculator'!P16,".",'VLSM Calculator'!R16,".",'VLSM Calculator'!T16) -> 222.37.34.129 | F8: =CONCATENATE('VLSM Calculator'!V16,".",'VLSM Calculator'!X16,".",'VLSM Calculator'!Z16,".",'VLSM Calculator'!AB16) -> 222.37.34.190 | G8: =CONCATENATE('VLSM Calculator'!AD16,".",'VLSM Calculator'!AF16,".",'VLSM Calculator'!AH16,".",'VLSM Calculator'!AJ16) -> 222.37.34.191
B9: 3 | C9: =CONCATENATE('VLSM Calculator'!F18,".",'VLSM Calculator'!H18,".",'VLSM Calculator'!J18,".",'VLSM Calculator'!L18) -> 222.37.34.192 | D9: ='VLSM Calculator'!AT18 -> 27 | E9: =CONCATENATE('VLSM Calculator'!N18,".",'VLSM Calculator'!P18,".",'VLSM Calculator'!R18,".",'VLSM Calculator'!T18) -> 222.37.34.193 | F9: =CONCATENATE('VLSM Calculator'!V18,".",'VLSM Calculator'!X18,".",'VLSM Calculator'!Z18,".",'VLSM Calculator'!AB18) -> 222.37.34.222 | G9: =CONCATENATE('VLSM Calculator'!AD18,".",'VLSM Calculator'!AF18,".",'VLSM Calculator'!AH18,".",'VLSM Calculator'!AJ18) -> 222.37.34.223
B10: 4 | C10: =CONCATENATE('VLSM Calculator'!F20,".",'VLSM Calculator'!H20,".",'VLSM Calculator'!J20,".",'VLSM Calculator'!L20) -> 222.37.34.224 | D10: ='VLSM Calculator'!AT20 -> 28 | E10: =CONCATENATE('VLSM Calculator'!N20,".",'VLSM Calculator'!P20,".",'VLSM Calculator'!R20,".",'VLSM Calculator'!T20) -> 222.37.34.225 | F10: =CONCATENATE('VLSM Calculator'!V20,".",'VLSM Calculator'!X20,".",'VLSM Calculator'!Z20,".",'VLSM Calculator'!AB20) -> 222.37.34.238 | G10: =CONCATENATE('VLSM Calculator'!AD20,".",'VLSM Calculator'!AF20,".",'VLSM Calculator'!AH20,".",'VLSM Calculator'!AJ20) -> 222.37.34.239
B11: 5 | C11: =CONCATENATE('VLSM Calculator'!F22,".",'VLSM Calculator'!H22,".",'VLSM Calculator'!J22,".",'VLSM Calculator'!L22) -> 222.37.34.240 | D11: ='VLSM Calculator'!AT22 -> 29 | E11: =CONCATENATE('VLSM Calculator'!N22,".",'VLSM Calculator'!P22,".",'VLSM Calculator'!R22,".",'VLSM Calculator'!T22) -> 222.37.34.241 | F11: =CONCATENATE('VLSM Calculator'!V22,".",'VLSM Calculator'!X22,".",'VLSM Calculator'!Z22,".",'VLSM Calculator'!AB22) -> 222.37.34.246 | G11: =CONCATENATE('VLSM Calculator'!AD22,".",'VLSM Calculator'!AF22,".",'VLSM Calculator'!AH22,".",'VLSM Calculator'!AJ22) -> 222.37.34.247
B12: 6 | C12: =CONCATENATE('VLSM Calculator'!F24,".",'VLSM Calculator'!H24,".",'VLSM Calculator'!J24,".",'VLSM Calculator'!L24) -> 222.37.34.248 | D12: ='VLSM Calculator'!AT24 -> 31 | E12: =CONCATENATE('VLSM Calculator'!N24,".",'VLSM Calculator'!P24,".",'VLSM Calculator'!R24,".",'VLSM Calculator'!T24) -> 222.37.34.249 | F12: =CONCATENATE('VLSM Calculator'!V24,".",'VLSM Calculator'!X24,".",'VLSM Calculator'!Z24,".",'VLSM Calculator'!AB24) -> 222.37.34.248 | G12: =CONCATENATE('VLSM Calculator'!AD24,".",'VLSM Calculator'!AF24,".",'VLSM Calculator'!AH24,".",'VLSM Calculator'!AJ24) -> 222.37.34.249
B13: 7 | C13: =CONCATENATE('VLSM Calculator'!F26,".",'VLSM Calculator'!H26,".",'VLSM Calculator'!J26,".",'VLSM Calculator'!L26) -> 222.37.34.250 | D13: ='VLSM Calculator'!AT26 -> 31 | E13: =CONCATENATE('VLSM Calculator'!N26,".",'VLSM Calculator'!P26,".",'VLSM Calculator'!R26,".",'VLSM Calculator'!T26) -> 222.37.34.251 | F13: =CONCATENATE('VLSM Calculator'!V26,".",'VLSM Calculator'!X26,".",'VLSM Calculator'!Z26,".",'VLSM Calculator'!AB26) -> 222.37.34.250 | G13: =CONCATENATE('VLSM Calculator'!AD26,".",'VLSM Calculator'!AF26,".",'VLSM Calculator'!AH26,".",'VLSM Calculator'!AJ26) -> 222.37.34.251
B14: 8 | C14: =CONCATENATE('VLSM Calculator'!F28,".",'VLSM Calculator'!H28,".",'VLSM Calculator'!J28,".",'VLSM Calculator'!L28) -> 222.37.35.0 | D14: ='VLSM Calculator'!AT28 -> 31 | E14: =CONCATENATE('VLSM Calculator'!N28,".",'VLSM Calculator'!P28,".",'VLSM Calculator'!R28,".",'VLSM Calculator'!T28) -> 222.37.35.1 | F14: =CONCATENATE('VLSM Calculator'!V28,".",'VLSM Calculator'!X28,".",'VLSM Calculator'!Z28,".",'VLSM Calculator'!AB28) -> 222.37.35.0 | G14: =CONCATENATE('VLSM Calculator'!AD28,".",'VLSM Calculator'!AF28,".",'VLSM Calculator'!AH28,".",'VLSM Calculator'!AJ28) -> 222.37.35.1
B15: 9 | C15: =CONCATENATE('VLSM Calculator'!F30,".",'VLSM Calculator'!H30,".",'VLSM Calculator'!J30,".",'VLSM Calculator'!L30) -> 222.37.35.2 | D15: ='VLSM Calculator'!AT30 -> 31 | E15: =CONCATENATE('VLSM Calculator'!N30,".",'VLSM Calculator'!P30,".",'VLSM Calculator'!R30,".",'VLSM Calculator'!T30) -> 222.37.35.3 | F15: =CONCATENATE('VLSM Calculator'!V30,".",'VLSM Calculator'!X30,".",'VLSM Calculator'!Z30,".",'VLSM Calculator'!AB30) -> 222.37.35.2 | G15: =CONCATENATE('VLSM Calculator'!AD30,".",'VLSM Calculator'!AF30,".",'VLSM Calculator'!AH30,".",'VLSM Calculator'!AJ30) -> 222.37.35.3
B16: 10 | C16: =CONCATENATE('VLSM Calculator'!F32,".",'VLSM Calculator'!H32,".",'VLSM Calculator'!J32,".",'VLSM Calculator'!L32) -> 222.37.35.4 | D16: ='VLSM Calculator'!AT32 -> 31 | E16: =CONCATENATE('VLSM Calculator'!N32,".",'VLSM Calculator'!P32,".",'VLSM Calculator'!R32,".",'VLSM Calculator'!T32) -> 222.37.35.5 | F16: =CONCATENATE('VLSM Calculator'!V32,".",'VLSM Calculator'!X32,".",'VLSM Calculator'!Z32,".",'VLSM Calculator'!AB32) -> 222.37.35.4 | G16: =CONCATENATE('VLSM Calculator'!AD32,".",'VLSM Calculator'!AF32,".",'VLSM Calculator'!AH32,".",'VLSM Calculator'!AJ32) -> 222.37.35.5
B17: 11 | C17: =CONCATENATE('VLSM Calculator'!F34,".",'VLSM Calculator'!H34,".",'VLSM Calculator'!J34,".",'VLSM Calculator'!L34) -> 222.37.35.6 | D17: ='VLSM Calculator'!AT34 -> 31 | E17: =CONCATENATE('VLSM Calculator'!N34,".",'VLSM Calculator'!P34,".",'VLSM Calculator'!R34,".",'VLSM Calculator'!T34) -> 222.37.35.7 | F17: =CONCATENATE('VLSM Calculator'!V34,".",'VLSM Calculator'!X34,".",'VLSM Calculator'!Z34,".",'VLSM Calculator'!AB34) -> 222.37.35.6 | G17: =CONCATENATE('VLSM Calculator'!AD34,".",'VLSM Calculator'!AF34,".",'VLSM Calculator'!AH34,".",'VLSM Calculator'!AJ34) -> 222.37.35.7
B18: 12 | C18: =CONCATENATE('VLSM Calculator'!F36,".",'VLSM Calculator'!H36,".",'VLSM Calculator'!J36,".",'VLSM Calculator'!L36) -> 222.37.35.8 | D18: ='VLSM Calculator'!AT36 -> 31 | E18: =CONCATENATE('VLSM Calculator'!N36,".",'VLSM Calculator'!P36,".",'VLSM Calculator'!R36,".",'VLSM Calculator'!T36) -> 222.37.35.9 | F18: =CONCATENATE('VLSM Calculator'!V36,".",'VLSM Calculator'!X36,".",'VLSM Calculator'!Z36,".",'VLSM Calculator'!AB36) -> 222.37.35.8 | G18: =CONCATENATE('VLSM Calculator'!AD36,".",'VLSM Calculator'!AF36,".",'VLSM Calculator'!AH36,".",'VLSM Calculator'!AJ36) -> 222.37.35.9
B19: 13 | C19: =CONCATENATE('VLSM Calculator'!F38,".",'VLSM Calculator'!H38,".",'VLSM Calculator'!J38,".",'VLSM Calculator'!L38) -> 222.37.35.10 | D19: ='VLSM Calculator'!AT38 -> 31 | E19: =CONCATENATE('VLSM Calculator'!N38,".",'VLSM Calculator'!P38,".",'VLSM Calculator'!R38,".",'VLSM Calculator'!T38) -> 222.37.35.11 | F19: =CONCATENATE('VLSM Calculator'!V38,".",'VLSM Calculator'!X38,".",'VLSM Calculator'!Z38,".",'VLSM Calculator'!AB38) -> 222.37.35.10 | G19: =CONCATENATE('VLSM Calculator'!AD38,".",'VLSM Calculator'!AF38,".",'VLSM Calculator'!AH38,".",'VLSM Calculator'!AJ38) -> 222.37.35.11
B20: 14 | C20: =CONCATENATE('VLSM Calculator'!F40,".",'VLSM Calculator'!H40,".",'VLSM Calculator'!J40,".",'VLSM Calculator'!L40) -> 222.37.35.12 | D20: ='VLSM Calculator'!AT40 -> 31 | E20: =CONCATENATE('VLSM Calculator'!N40,".",'VLSM Calculator'!P40,".",'VLSM Calculator'!R40,".",'VLSM Calculator'!T40) -> 222.37.35.13 | F20: =CONCATENATE('VLSM Calculator'!V40,".",'VLSM Calculator'!X40,".",'VLSM Calculator'!Z40,".",'VLSM Calculator'!AB40) -> 222.37.35.12 | G20: =CONCATENATE('VLSM Calculator'!AD40,".",'VLSM Calculator'!AF40,".",'VLSM Calculator'!AH40,".",'VLSM Calculator'!AJ40) -> 222.37.35.13
B21: 15 | C21: =CONCATENATE('VLSM Calculator'!F42,".",'VLSM Calculator'!H42,".",'VLSM Calculator'!J42,".",'VLSM Calculator'!L42) -> 222.37.35.14 | D21: ='VLSM Calculator'!AT42 -> 31 | E21: =CONCATENATE('VLSM Calculator'!N42,".",'VLSM Calculator'!P42,".",'VLSM Calculator'!R42,".",'VLSM Calculator'!T42) -> 222.37.35.15 | F21: =CONCATENATE('VLSM Calculator'!V42,".",'VLSM Calculator'!X42,".",'VLSM Calculator'!Z42,".",'VLSM Calculator'!AB42) -> 222.37.35.14 | G21: =CONCATENATE('VLSM Calculator'!AD42,".",'VLSM Calculator'!AF42,".",'VLSM Calculator'!AH42,".",'VLSM Calculator'!AJ42) -> 222.37.35.15
B22: 16 | C22: =CONCATENATE('VLSM Calculator'!F44,".",'VLSM Calculator'!H44,".",'VLSM Calculator'!J44,".",'VLSM Calculator'!L44) -> 222.37.35.16 | D22: ='VLSM Calculator'!AT44 -> 31 | E22: =CONCATENATE('VLSM Calculator'!N44,".",'VLSM Calculator'!P44,".",'VLSM Calculator'!R44,".",'VLSM Calculator'!N44) -> 222.37.35.222 | F22: =CONCATENATE('VLSM Calculator'!V44,".",'VLSM Calculator'!X44,".",'VLSM Calculator'!Z44,".",'VLSM Calculator'!AB44) -> 222.37.35.16 | G22: =CONCATENATE('VLSM Calculator'!AD44,".",'VLSM Calculator'!AF44,".",'VLSM Calculator'!AH44,".",'VLSM Calculator'!AJ44) -> 222.37.35.17

Sheet Net
B2: 0 | D2: 8 | F2: 32 | H2: 40 | J2: 128 | L2: 136 | N2: 160 | P2: 168
C3: 3 | E3: 11 | G3: 35 | I3: 43 | K3: 131 | M3: 139 | O3: 163 | Q3: 171
B4: 4 | D4: 12 | F4: 36 | H4: 44 | J4: 132 | L4: 140 | N4: 164 | P4: 172
C5: 7 | E5: 15 | G5: 39 | I5: 47 | K5: 135 | M5: 143 | O5: 167 | Q5: 175
B6: 16 | D6: 24 | F6: 48 | H6: 56 | J6: 144 | L6: 152 | N6: 176 | P6: 184
C7: 19 | E7: 27 | G7: 51 | I7: 59 | K7: 147 | M7: 155 | O7: 179 | Q7: 187
B8: 20 | D8: 28 | F8: 52 | H8: 60 | J8: 148 | L8: 156 | N8: 180 | P8: 188
C9: 23 | E9: 31 | G9: 55 | I9: 63 | K9: 151 | M9: 159 | O9: 183 | Q9: 191
B10: 64 | D10: 72 | F10: 96 | H10: 112 | J10: 192 | L10: 200 | N10: 224 | P10: 232
C11: 67 | E11: 75 | G11: 99 | I11: 115 | K11: 195 | M11: 203 | O11: 227 | Q11: 235
B12: 68 | D12: 76 | F12: 100 | H12: 116 | J12: 196 | L12: 204 | N12: 228 | P12: 236
C13: 71 | E13: 79 | G13: 103 | I13: 119 | K13: 199 | M13: 207 | O13: 231 | Q13: 239
B14: 80 | D14: 88 | F14: 104 | H14: 120 | J14: 208 | L14: 216 | N14: 240 | P14: 248
C15: 83 | E15: 91 | G15: 107 | I15: 123 | K15: 211 | M15: 219 | O15: 243 | Q15: 251
B16: 84 | D16: 92 | F16: 108 | H16: 124 | J16: 212 | L16: 220 | N16: 244 | P16: 252
C17: 87 | E17: 95 | G17: 111 | I17: 127 | K17: 215 | M17: 223 | O17: 247 | Q17: 255
B19: 256
B20: 128
B21: 64
B22: 32
B23: 16
B24: 8
B25: 4
